lending/lending_fUSD_20250121
["ID","MTS","AMOUNT","RATE_DAILY","PERIOD"]
[349787482,1737430240854,-1793.02,0.00020273,2]
[349787483,1737430240864,-203.35776396,0.00020335,2]
[349787485,1737430240873,-375.82987915,0.00020434,2]
[349787487,1737430240883,-150.230553,0.00020542,2]
[349787489,1737430240892,-154.922822,0.00020545,2]
[349787491,1737430240901,-159.984577,0.00020545,2]
[349787494,1737430240912,-155.005006,0.00020545,2]
[349787496,1737430240921,-154.844845,0.00020545,2]
[349787498,1737430240931,-154.922822,0.00020547,2]
[349787500,1737430240940,-150.230553,0.00020547,2]
[349787502,1737430240949,-162.090928,0.00020547,2]
[349787504,1737430240958,-500.0,0.00020547,2]
[349787505,1737430240967,-151.752331,0.00020547,2]
[349787508,1737430240977,-929.48,0.00020547,2]
[349787510,1737430240987,-500.0,0.00020547,2]
[349787511,1737430240996,-500.0,0.00020547,2]
[349787513,1737430241006,-641.42,0.00020547,2]
[349787516,1737430241017,-1169.76,0.00020547,2]
[349787518,1737430241027,-746.99,0.00020547,2]
[349787520,1737430241037,-637.23,0.00020547,2]
[349787522,1737430241047,-159.984577,0.00020547,2]
[349787523,1737430241056,-500.0,0.00020547,2]
[349787525,1737430241066,-500.0,0.00020547,2]
[349787528,1737430241076,-929.47,0.00020547,2]
[349787530,1737430241085,-1479.27,0.00020547,2]
[349787532,1737430241094,-500.0,0.00020547,2]
[349787533,1737430241103,-155.005006,0.00020547,2]
[349787535,1737430241115,-155.005006,0.00020547,2]
[349787537,1737430241126,-500.0,0.00020547,2]
[349787540,1737430241136,-1399.54,0.00020547,2]
[349787541,1737430241146,-500.0,0.00020547,2]
[349787543,1737430241155,-500.0,0.00020547,2]
[349787545,1737430241165,-1343.64,0.00020547,2]
[349787547,1737430241174,-720.57,0.00020547,2]
[349787549,1737430241184,-157.333708,0.00020547,2]
[349787552,1737430241194,-504.28,0.00020547,2]
[349787554,1737430241204,-587.99,0.00020547,2]
[349787555,1737430241214,-500.0,0.00020547,2]
[349787556,1737430241223,-500.0,0.00020547,2]
[349787557,1737430241233,-500.0,0.00020547,2]
[349787558,1737430241242,-1793.02,0.00020547,2]
[349787559,1737430241251,-171.724417,0.00020596,2]
[349787560,1737430241260,-203.35776396,0.00020726,2]
[349787561,1737430241270,-375.82987915,0.00020785,2]
[349787562,1737430241280,-151.224,0.00020814,2]
[349787563,1737430241289,-569.267,0.00020814,2]
[349787564,1737430241298,-639.199,0.00020814,2]
[349787565,1737430241308,-150.436,0.00020814,2]
[349787566,1737430241318,-1864.0,0.00020814,2]
[349787567,1737430241327,-150.230553,0.00020816,2]
[349787568,1737430241337,-151.752331,0.00020816,2]
[349787569,1737430241347,-157.333708,0.00020816,2]
[349787570,1737430241356,-155.061597,0.00020821,2]
[349787571,1737430241365,-162.090928,0.00020821,2]
[349787572,1737430241375,-500.0,0.00020821,2]
[349787573,1737430241385,-929.48,0.00020821,2]
[349787574,1737430241394,-500.0,0.00020821,2]
[349787575,1737430241403,-500.0,0.00020821,2]
[349787576,1737430241413,-641.42,0.00020821,2]
[349787577,1737430241422,-1169.76,0.00020821,2]
[349787578,1737430241431,-746.99,0.00020821,2]
[349787579,1737430241440,-637.23,0.00020821,2]
[349787580,1737430241449,-500.0,0.00020821,2]
[349787581,1737430241458,-500.0,0.00020821,2]
[349787582,1737430241467,-929.47,0.00020821,2]
[349787583,1737430241476,-1479.27,0.00020821,2]
[349787584,1737430241485,-500.0,0.00020821,2]
[349787585,1737430241495,-155.005006,0.00020821,2]
[349787586,1737430241504,-500.0,0.00020821,2]
[349787587,1737430241513,-1399.54,0.00020821,2]
[349787588,1737430241523,-154.844845,0.00020821,2]
[349787589,1737430241531,-500.0,0.00020821,2]
[349787590,1737430241541,-500.0,0.00020821,2]
[349787591,1737430241552,-1343.64,0.00020821,2]
[349787592,1737430241561,-720.57,0.00020821,2]
[349787593,1737430241571,-504.28,0.00020821,2]
[349787594,1737430241580,-587.99,0.00020821,2]
[349787595,1737430241589,-500.0,0.00020821,2]
[349787596,1737430241598,-500.0,0.00020821,2]
[349787597,1737430241608,-500.0,0.00020821,2]
[349787598,1737430241618,-1793.02,0.00020821,2]
[349787599,1737430241628,-152.0,0.00020871,3]
[349787600,1737430241637,-175.27,0.00020876,2]
[349787601,1737430241646,-250.0,0.00020899,2]
[349787602,1737430241657,-161.536,0.000209,2]
[349787603,1737430241668,-11548.21509904,0.00020905,2]
[349787604,1737430241677,-155.55,0.0002099,2]
[349787605,1737430241686,-154.922822,0.00020999,2]
[349787606,1737430241695,-150.230553,0.00020999,2]
[349787607,1737430241704,-159.984577,0.00020999,2]
[349787608,1737430241713,-155.005006,0.00020999,2]
[349787609,1737430241722,-1101.76048706,0.00020999,4]
[349787610,1737430241732,-500.0,0.00021,7]
[349787611,1737430241741,-500.0,0.00021,7]
[349787612,1737430241750,-500.0,0.00021,7]
[349787613,1737430241760,-500.0,0.00021,7]
[349787614,1737430241768,-500.0,0.00021,7]
[349787615,1737430241777,-500.0,0.00021,7]
[349787616,1737430241786,-500.0,0.00021,7]
[349787617,1737430241796,-500.0,0.00021,7]
[349787618,1737430241805,-500.0,0.00021,7]
[349787619,1737430241814,-500.0,0.00021,7]
[349787620,1737430241823,-500.0,0.00021,7]
[349787621,1737430241832,-500.0,0.00021,7]
[349787622,1737430241841,-500.0,0.00021,7]
[349787623,1737430241850,-500.0,0.00021,7]
[349787624,1737430241859,-500.0,0.00021,7]
[349787625,1737430241869,-401.27,0.00021,7]
[349787626,1737430241880,-500.0,0.00021,7]
[349787627,1737430241890,-500.0,0.00021,7]
[349787628,1737430241899,-500.0,0.00021,7]
[349787629,1737430241909,-500.0,0.00021,7]
[349787630,1737430241918,-500.0,0.00021,7]
[349787631,1737430241928,-500.0,0.00021,7]
[349787632,1737430241938,-500.0,0.00021,7]
[349787633,1737430241947,-500.0,0.00021,7]
[349787634,1737430241956,-500.0,0.00021,7]
[349787635,1737430241966,-500.0,0.00021,7]
[349787636,1737430241976,-500.0,0.00021,7]
[349787637,1737430241986,-500.0,0.00021,7]
[349787638,1737430241996,-500.0,0.00021,7]
[349787639,1737430242006,-500.0,0.00021,7]
[349787640,1737430242016,-500.0,0.00021,7]
[349787641,1737430242027,-500.0,0.00021,7]
[349787642,1737430242037,-500.0,0.00021,7]
[349787643,1737430242047,-500.0,0.00021,7]
[349787644,1737430242056,-500.0,0.00021,7]
[349787645,1737430242067,-500.0,0.00021,7]
[349787646,1737430242076,-500.0,0.00021,7]
[349787647,1737430242085,-500.0,0.00021,7]
[349787648,1737430242095,-431.04,0.00021,7]
[349787649,1737430242104,-20709.56445576,0.00021,3]
[349787650,1737430242114,-2880.33855767,0.00021,3]
[349787651,1737430242124,-27195.70087213,0.00021,2]
[349787652,1737430242133,-156.0,0.00021,2]
[349787653,1737430242143,-1799.99999906,0.00021,22]
[349787654,1737430242152,-250.0,0.00021005,2]
[349787655,1737430242162,-175.33,0.00021005,2]
[349787656,1737430242171,-647.942,0.00021011,2]
[349787657,1737430242181,-1000.0,0.00021012,2]
[349787658,1737430242190,-23900.0,0.00021012,2]
[349787659,1737430242199,-673.4,0.00021016,2]
[349787660,1737430242209,-727.0,0.00021045,30]
[349787661,1737430242218,-375.82987915,0.00021074,2]
[349787662,1737430242228,-151.752331,0.0002109,2]
[349787663,1737430242237,-155.005006,0.0002109,2]
[349787664,1737430242251,-157.333708,0.0002109,2]
[349787665,1737430242260,-500.0,0.00021095,2]
[349787666,1737430242270,-929.48,0.00021095,2]
[349787667,1737430242279,-500.0,0.00021095,2]
[349787668,1737430242288,-500.0,0.00021095,2]
[349787669,1737430242298,-641.42,0.00021095,2]
[349787670,1737430242307,-1169.76,0.00021095,2]
[349787671,1737430242317,-637.23,0.00021095,2]
[349787672,1737430242326,-746.99,0.00021095,2]
[349787673,1737430242336,-500.0,0.00021095,2]
[349787674,1737430242345,-500.0,0.00021095,2]
[349787675,1737430242355,-929.47,0.00021095,2]
[349787676,1737430242364,-1479.27,0.00021095,2]
[349787677,1737430242374,-500.0,0.00021095,2]
[349787678,1737430242383,-500.0,0.00021095,2]
[349787679,1737430242393,-1399.54,0.00021095,2]
[349787680,1737430242403,-500.0,0.00021095,2]
[349787681,1737430242412,-500.0,0.00021095,2]
[349787682,1737430242421,-1343.64,0.00021095,2]
[349787683,1737430242431,-720.57,0.00021095,2]
[349787684,1737430242440,-504.28,0.00021095,2]
[349787685,1737430242450,-587.99,0.00021095,2]
[349787686,1737430242459,-500.0,0.00021095,2]
[349787687,1737430242469,-500.0,0.00021095,2]
[349787688,1737430242480,-500.0,0.00021095,2]
[349787689,1737430242490,-1793.02,0.00021095,2]
[349787690,1737430242499,-203.35776396,0.00021117,2]
[349787691,1737430242508,-375.82987915,0.00021151,2]
[349787692,1737430242518,-162.090928,0.0002117,2]
[349787693,1737430242528,-155.005006,0.0002117,2]
[349787694,1737430242538,-154.922822,0.00021272,2]
[349787695,1737430242548,-150.230553,0.00021272,2]
[349787696,1737430242558,-159.984577,0.00021272,2]
[349787698,1737430242568,-154.844845,0.00021272,2]
[349787699,1737430242578,-151.752331,0.00021364,2]
[349787700,1737430242588,-155.005006,0.00021364,2]
[349787701,1737430242597,-157.333708,0.00021364,2]
[349787702,1737430242606,-500.0,0.00021369,2]
[349787703,1737430242616,-929.48,0.00021369,2]
[349787704,1737430242625,-500.0,0.00021369,2]
[349787705,1737430242635,-500.0,0.00021369,2]
[349787706,1737430242644,-641.42,0.00021369,2]
[349787707,1737430242653,-1169.76,0.00021369,2]
[349787708,1737430242663,-637.23,0.00021369,2]
[349787709,1737430242673,-746.99,0.00021369,2]
[349787710,1737430242682,-500.0,0.00021369,2]
[349787711,1737430242691,-500.0,0.00021369,2]
[349787713,1737430242701,-929.47,0.00021369,2]
[349787715,1737430242711,-1479.27,0.00021369,2]
[349787717,1737430242720,-500.0,0.00021369,2]
[349787719,1737430242730,-500.0,0.00021369,2]
[349787721,1737430242739,-1399.54,0.00021369,2]
[349787723,1737430242749,-500.0,0.00021369,2]
[349787725,1737430242759,-551.46254859,0.00021369,2]
[349787727,1737430242768,-1343.64,0.00021369,2]
[349787728,1737430242777,-720.57,0.00021369,2]
[349787729,1737430242787,-504.28,0.00021369,2]
[349787730,1737430242796,-587.99,0.00021369,2]
[349787731,1737430242805,-500.0,0.00021369,2]
[349787732,1737430242816,-500.0,0.00021369,2]
[349787733,1737430242826,-500.0,0.00021369,2]
[349787734,1737430242835,-1793.02,0.00021369,2]
[349787735,1737430242844,-6034.41,0.0002137,2]
[349787736,1737430242853,-773.11,0.00021388,2]
[349787737,1737430242863,-446.95,0.00021388,2]
[349787738,1737430242872,-773.11,0.00021388,2]
[349787739,1737430242883,-773.11,0.000214,2]
[349787740,1737430242892,-773.11,0.000214,2]
[349787741,1737430242901,-773.11,0.000214,2]
[349787742,1737430242911,-773.11,0.000214,2]
[349787743,1737430242920,-773.11,0.000214,2]
[349787744,1737430242930,-375.82987915,0.000214,2]
[349787745,1737430242939,-155.061597,0.00021444,2]
[349787746,1737430242949,-150.230553,0.00021444,2]
[349787747,1737430242958,-162.090928,0.00021444,2]
[349787748,1737430242968,-155.005006,0.00021444,2]
[349787749,1737430242977,-600.75356257,0.00021499,2]
[349787750,1737430242987,-510.47400059,0.00021499,2]
[349787751,1737430242997,-513.29686804,0.00021499,2]
[349787752,1737430243007,-519.15433761,0.00021499,2]
[349787753,1737430243016,-621.40064972,0.00021499,2]
[349787754,1737430243029,-525.60457446,0.00021499,2]
[349787755,1737430243038,-500.0,0.00021499,2]
[349787756,1737430243048,-500.0,0.00021499,2]
[349787757,1737430243057,-500.0,0.00021499,2]
[349787758,1737430243067,-500.0,0.00021499,2]
[349787759,1737430243076,-500.0,0.00021499,2]
[349787760,1737430243086,-500.0,0.00021499,2]
[349787761,1737430243098,-500.0,0.00021499,2]
[349787762,1737430243108,-523.0126514,0.00021499,2]
[349787763,1737430243118,-524.2322221,0.00021499,2]
[349787764,1737430243129,-515.83184728,0.00021499,2]
[349787765,1737430243139,-305.43,0.00021499,2]
[349787766,1737430243318,-467160.11151543,0.000215,4]
[349787767,1737430243328,-203.35776396,0.00021509,2]
[349787768,1737430243337,-154.922822,0.00021546,2]
[349787769,1737430243347,-151.752331,0.00021546,2]
[349787770,1737430243356,-159.984577,0.00021546,2]
[349787771,1737430243365,-157.333708,0.00021546,2]
[349787772,1737430243375,-213.393456,0.0002156,2]
[349787773,1737430243384,-2946.7112235,0.0002156,2]
[349787774,1737430243394,-2070.10806093,0.00021635,2]
[349787775,1737430243403,-2070.10806091,0.00021635,2]
[349787776,1737430243412,-155.005006,0.00021638,2]
[349787777,1737430243422,-150.230553,0.00021643,2]
[349787778,1737430243431,-500.0,0.00021643,2]
[349787779,1737430243440,-929.48,0.00021643,2]
[349787780,1737430243450,-500.0,0.00021643,2]
[349787781,1737430243459,-500.0,0.00021643,2]
[349787782,1737430243469,-641.42,0.00021643,2]
[349787783,1737430243479,-1169.76,0.00021643,2]
[349787784,1737430243488,-637.23,0.00021643,2]
[349787785,1737430243497,-746.99,0.00021643,2]
[349787786,1737430243507,-500.0,0.00021643,2]
[349787787,1737430243516,-500.0,0.00021643,2]
[349787788,1737430243525,-929.47,0.00021643,2]
[349787789,1737430243534,-1479.27,0.00021643,2]
[349787790,1737430243545,-500.0,0.00021643,2]
[349787791,1737430243555,-500.0,0.00021643,2]
[349787792,1737430243564,-1399.54,0.00021643,2]
[349787793,1737430243574,-154.844845,0.00021643,2]
[349787794,1737430243583,-500.0,0.00021643,2]
[349787795,1737430243592,-1343.64,0.00021643,2]
[349787796,1737430243602,-720.57,0.00021643,2]
[349787797,1737430243611,-504.28,0.00021643,2]
[349787798,1737430243620,-587.99,0.00021643,2]
[349787799,1737430243631,-500.0,0.00021643,2]
[349787800,1737430243640,-500.0,0.00021643,2]
[349787801,1737430243649,-500.0,0.00021643,2]
[349787802,1737430243659,-457.43396546,0.00021666,2]
[349787803,1737430243670,-1642.0,0.000217,2]
[349787804,1737430243680,-375.82987917,0.00021714,2]
[349787805,1737430243689,-7713.00243221,0.00021726,2]
[349787806,1737430243698,-150.0,0.00021726,2]
[349787807,1737430243707,-4633.84059208,0.00021728,2]
[349787808,1737430243717,-200.0,0.0002173,2]
[349787809,1737430243726,-4633.84059208,0.00021731,2]
[349787810,1737430243735,-200.0,0.00021731,2]
[349787811,1737430243745,-7713.00243221,0.00021733,2]
[349787812,1737430243754,-7096.56495867,0.00021734,2]
[349787813,1737430243764,-48934.66436066,0.00021735,2]
[349787814,1737430243774,-300.0,0.00021737,2]
[349787815,1737430243783,-7096.56495867,0.00021744,2]
[349787816,1737430243793,-7096.56495867,0.00021744,2]
[349787817,1737430243802,-3726.32946355,0.00021745,2]
[349787818,1737430243812,-8985.91106076,0.00021746,2]
[349787819,1737430243821,-48934.66436066,0.00021747,2]
[349787820,1737430243831,-300.0,0.00021748,2]
[349787821,1737430243840,-7096.56495867,0.00021751,2]
[349787822,1737430243850,-3726.32946355,0.00021752,2]
[349787823,1737430243859,-178.86203412,0.00021756,2]
[349787824,1737430243871,-300.0,0.00021766,2]
[349787825,1737430243882,-8985.91106076,0.00021768,2]
[349787826,1737430243891,-7096.56495867,0.00021768,2]
[349787827,1737430243902,-200.0,0.00021768,2]
[349787828,1737430243911,-200.0,0.00021768,2]
[349787829,1737430243920,-1000.0,0.00021768,2]
[349787830,1737430243931,-13592.378734,0.00021771,2]
[349787831,1737430243941,-105499.40943952,0.00021772,2]
[349787832,1737430243950,-500.0,0.00021773,2]
[349787833,1737430243959,-303.32828405,0.00021773,2]
[349787834,1737430243968,-533.34259026,0.00021773,2]
[349787835,1737430243978,-533.86163843,0.00021773,2]
[349787836,1737430243987,-500.0,0.00021773,2]
[349787837,1737430243996,-515.57979137,0.00021773,2]
[349787838,1737430244006,-150.0,0.00021774,2]
[349787839,1737430244015,-200.0,0.00021778,2]
[349787840,1737430244025,-157234.78092859,0.0002178,2]
[349787841,1737430244036,-3000.0,0.0002178,2]
[349787842,1737430244047,-105499.40943952,0.00021781,2]
[349787843,1737430244056,-48934.66436066,0.00021782,2]
[349787844,1737430244065,-7713.00243221,0.00021785,2]
[349787845,1737430244074,-2472.56095966,0.00021787,2]
[349787846,1737430244086,-150.0,0.00021787,2]
[349787847,1737430244095,-300.0,0.0002179,2]
[349787848,1737430244104,-150.0,0.00021791,2]
[349787849,1737430244117,-150.0,0.00021793,2]
[349787850,1737430244126,-252.49252953,0.00021798,2]
[349787851,1737430244136,-300.0,0.00021799,2]
[349787852,1737430244145,-1036.38149935,0.000218,2]
[349787853,1737430244154,-1000.0,0.00021803,2]
[349787854,1737430244164,-3726.32946355,0.00021803,2]
[349787855,1737430244173,-300.0,0.00021809,2]
[349787856,1737430244182,-150.0,0.00021819,2]
[349787857,1737430244192,-155.005006,0.0002182,2]
[349787858,1737430244201,-150.0,0.00021821,2]
[349787859,1737430244210,-4633.84059208,0.00021824,2]
[349787860,1737430244220,-500.0,0.00021824,2]
[349787861,1737430244229,-200.0,0.00021827,2]
[349787862,1737430244238,-48934.66436066,0.00021827,2]
[349787863,1737430244247,-200.0,0.00021833,2]
[349787864,1737430244256,-150.0,0.00021835,2]
[349787865,1737430244266,-13592.378734,0.00021835,2]
[349787866,1737430244275,-2472.56095966,0.00021839,2]
[349787867,1737430244285,-150.0,0.00021842,2]
[349787868,1737430244294,-2472.56095966,0.00021842,2]
[349787869,1737430244304,-3726.32946355,0.00021843,2]
[349787870,1737430244313,-150.0,0.00021844,2]
[349787871,1737430244322,-105499.40943952,0.00021846,2]
[349787872,1737430244331,-200.0,0.00021846,2]
[349787873,1737430244341,-13592.378734,0.00021847,2]
[349787874,1737430244351,-2472.56095966,0.0002185,2]
[349787875,1737430244360,-150.0,0.0002185,2]
[349787876,1737430244369,-7713.00243221,0.0002185,2]
[349787877,1737430244380,-3726.32946355,0.00021852,2]
[349787878,1737430244389,-4633.84059208,0.00021853,2]
[349787879,1737430244399,-200.0,0.00021856,2]
[349787880,1737430244408,-8985.91106076,0.00021858,2]
[349787881,1737430244417,-200.0,0.0002186,2]
[349787882,1737430244426,-2472.56095966,0.00021863,2]
[349787883,1737430244435,-13592.378734,0.00021864,2]
[349787884,1737430244445,-150.0,0.00021865,2]
[349787885,1737430244454,-8985.91106076,0.00021869,2]
[349787886,1737430244463,-150.0,0.00021877,2]
[349787887,1737430244472,-13592.378734,0.00021878,2]
[349787888,1737430244481,-105499.40943952,0.0002188,2]
[349787889,1737430244490,-48934.66436066,0.00021882,2]
[349787890,1737430244499,-4633.84059208,0.00021882,2]
[349787891,1737430244509,-105499.40943952,0.00021883,2]
[349787892,1737430244518,-300.0,0.00021889,2]
[349787893,1737430244527,-150.0,0.0002189,2]
[349787894,1737430244536,-500.0,0.0002189,2]
[349787895,1737430244545,-7713.00243221,0.00021892,2]
[349787896,1737430244555,-8985.91106076,0.00021893,2]
[349787897,1737430244564,-150.89967517,0.00021894,2]
[349787898,1737430244574,-150.0,0.00021897,2]
[349787899,1737430244583,-1771.1884,0.00021899,2]
[349787900,1737430244592,-6912.40909912,0.00021899,2]
[349787901,1737430244601,-155.73109994,0.00021899,4]
[349787902,1737430244610,-27164.3879849,0.00021899,2]
[349787903,1737430244619,-6912.4090991,0.000219,2]
[349787904,1737430244629,-27164.3879849,0.000219,2]
[349787905,1737430244639,-853.8522,0.000219,2]
[349787906,1737430244648,-5000.0,0.000219,2]
[349787907,1737430244657,-873.85,0.000219,31]
[349787908,1737430244667,-873.85,0.000219,31]
[349787909,1737430244675,-873.85,0.000219,31]
[349787910,1737430244685,-873.85,0.000219,31]
[349787911,1737430244694,-873.85,0.000219,31]
[349787912,1737430244703,-873.85,0.000219,31]
[349787913,1737430244712,-873.85,0.000219,31]
[349787914,1737430244721,-873.85,0.000219,31]
[349787915,1737430244730,-873.85,0.000219,31]
[349787916,1737430244739,-873.85,0.000219,31]
[349787917,1737430244748,-873.85,0.000219,31]
[349787918,1737430244757,-873.85,0.000219,31]
[349787919,1737430244767,-873.85,0.000219,31]
[349787920,1737430244777,-873.85,0.000219,31]
[349787921,1737430244786,-873.85,0.000219,31]
[349787922,1737430244795,-873.85,0.000219,31]
[349787923,1737430244804,-14603.440573,0.000219,2]
[349787924,1737430244813,-1025.81856191,0.000219,2]
[349787925,1737430244822,-1025.81856184,0.000219,2]
[349787926,1737430244831,-1025.81856184,0.000219,2]
[349787927,1737430244840,-1025.81856184,0.000219,2]
[349787928,1737430244849,-1025.81856184,0.000219,2]
[349787929,1737430244858,-1025.81856184,0.000219,2]
[349787930,1737430244867,-1025.81856184,0.000219,2]
[349787931,1737430244878,-1025.81856184,0.000219,2]
[349787932,1737430244887,-1025.81856184,0.000219,2]
[349787933,1737430244897,-1025.81856184,0.000219,2]
[349787934,1737430244906,-1025.81856184,0.000219,2]
[349787935,1737430244915,-1025.81856184,0.000219,2]
[349787936,1737430244924,-1025.81856184,0.000219,2]
[349787937,1737430244933,-1025.81856184,0.000219,2]
[349787938,1737430244942,-11548.21509904,0.000219,2]
[349787939,1737430244951,-1025.81856184,0.000219,2]
[349787940,1737430244960,-1025.81856184,0.000219,2]
[349787941,1737430244969,-1025.81856184,0.000219,2]
[349787942,1737430244978,-1025.81856184,0.000219,2]
[349787943,1737430244986,-6912.4090991,0.000219,2]
[349787944,1737430244995,-1025.81856184,0.000219,2]
[349787945,1737430245005,-1025.81856184,0.000219,2]
[349787946,1737430245014,-155.73109994,0.000219,4]
[349787947,1737430245028,-27164.3879849,0.000219,2]
[349787948,1737430245038,-203.35776396,0.000219,3]
[349787949,1737430245047,-150.0,0.00021907,2]
[349787950,1737430245056,-154.922822,0.00021912,2]
[349787951,1737430245067,-162.090928,0.00021912,2]
[349787952,1737430245076,-151.752331,0.00021912,2]
[349787953,1737430245085,-159.984577,0.00021912,2]
[349787954,1737430245094,-155.005006,0.00021912,2]
[349787955,1737430245103,-157.333708,0.00021912,2]
[349787956,1737430245112,-150.230553,0.00021917,2]
[349787957,1737430245121,-500.0,0.00021917,2]
[349787958,1737430245133,-929.48,0.00021917,2]
[349787959,1737430245142,-500.0,0.00021917,2]
[349787960,1737430245151,-429.21694958,0.00021917,2]
[349787961,1737430245161,-641.42,0.00021917,2]
[349787962,1737430245170,-1169.76,0.00021917,2]
[349787963,1737430245180,-637.23,0.00021917,2]
[349787964,1737430245189,-746.99,0.00021917,2]
[349787965,1737430245198,-500.0,0.00021917,2]
[349787966,1737430245208,-500.0,0.00021917,2]
[349787967,1737430245217,-929.47,0.00021917,2]
[349787968,1737430245227,-1479.27,0.00021917,2]
[349787969,1737430245237,-500.0,0.00021917,2]
[349787970,1737430245246,-155.005006,0.00021917,2]
[349787971,1737430245256,-500.0,0.00021917,2]
[349787972,1737430245265,-1399.54,0.00021917,2]
[349787973,1737430245274,-500.0,0.00021917,2]
[349787974,1737430245283,-1343.64,0.00021917,2]
[349787975,1737430245293,-720.57,0.00021917,2]
[349787976,1737430245303,-504.28,0.00021917,2]
[349787977,1737430245312,-587.99,0.00021917,2]
[349787978,1737430245321,-500.0,0.00021917,2]
[349787979,1737430245330,-500.0,0.00021917,2]
[349787980,1737430245339,-500.0,0.00021917,2]
[349787981,1737430245348,-150.0,0.00021918,2]
[349787982,1737430245357,-1000.0,0.00021919,2]
[349787983,1737430245366,-399.88289643,0.0002192,2]
[349787984,1737430245376,-399.88289643,0.0002192,2]
[349787985,1737430245386,-399.88289643,0.0002192,2]
[349787986,1737430245395,-399.88289643,0.0002192,2]
[349787987,1737430245404,-399.88289643,0.0002192,2]
[349787988,1737430245414,-399.88289643,0.0002192,2]
[349787989,1737430245423,-399.88289643,0.0002192,2]
[349787990,1737430245432,-399.88289643,0.0002192,2]
[349787991,1737430245441,-399.88289643,0.0002192,2]
[349787992,1737430245450,-399.88289643,0.0002192,2]
[349787993,1737430245459,-399.88289643,0.0002192,2]
[349787994,1737430245468,-399.88289643,0.0002192,2]
[349787995,1737430245477,-399.88289643,0.0002192,2]
[349787996,1737430245486,-399.88289643,0.0002192,2]
[349787997,1737430245495,-399.88289643,0.0002192,2]
[349787998,1737430245504,-399.88289643,0.0002192,2]
[349787999,1737430245513,-399.88289643,0.0002192,2]
[349788000,1737430245522,-399.88289643,0.0002192,2]
[349788001,1737430245531,-399.88289643,0.0002192,2]
[349788002,1737430245540,-399.88,0.0002192,2]
[349788003,1737430245550,-933.06009168,0.0002192,2]
[349788005,1737430245560,-933.06009168,0.0002192,2]
[349788007,1737430245569,-933.06009168,0.0002192,2]
[349788009,1737430245578,-933.06009168,0.0002192,2]
[349788011,1737430245588,-933.06009168,0.0002192,2]
[349788012,1737430245597,-933.06009168,0.0002192,2]
[349788015,1737430245606,-933.06009168,0.0002192,2]
[349788016,1737430245615,-933.06009168,0.0002192,2]
[349788017,1737430245627,-933.06009168,0.0002192,2]
[349788018,1737430245635,-933.06009168,0.0002192,2]
[349788019,1737430245645,-933.06009168,0.0002192,2]
[349788020,1737430245654,-933.06009168,0.0002192,2]
[349788021,1737430245664,-933.06009168,0.0002192,2]
[349788023,1737430245673,-933.06009168,0.0002192,2]
[349788025,1737430245682,-933.06009168,0.0002192,2]
[349788026,1737430245691,-933.06009168,0.0002192,2]
[349788027,1737430245700,-933.06009168,0.0002192,2]
[349788028,1737430245709,-933.06009168,0.0002192,2]
[349788029,1737430245719,-933.06009168,0.0002192,2]
[349788030,1737430245728,-933.06,0.0002192,2]
[349788031,1737430245737,-1060.16570752,0.0002192,2]
[349788032,1737430245746,-1060.16570752,0.0002192,2]
[349788033,1737430245755,-1060.16570752,0.0002192,2]
[349788034,1737430245764,-1060.16570752,0.0002192,2]